bitfinex/quotes_BTCUSD_20241004
["timestamp","ask_amount","ask_price","bid_price","bid_amount"]
[1728029033075,0.17987556,61495.0,61494.0,0.001638]
[1728029033315,0.19087556,61495.0,61494.0,0.001638]
[1728029033553,0.19987556,61495.0,61494.0,0.001638]
[1728029033774,0.17987556,61495.0,61494.0,0.001638]
[1728029033999,0.33194047,61495.0,61494.0,0.001638]
[1728029034260,0.18887556,61495.0,61494.0,0.001638]
[1728029034499,0.17987556,61495.0,61494.0,0.001638]
[1728029034714,0.18387556,61495.0,61494.0,0.001638]
[1728029034934,0.21637103,61495.0,61494.0,0.001638]
[1728029036032,0.20537103,61495.0,61494.0,0.001638]
[1728029036470,0.22037103,61495.0,61494.0,0.001638]
[1728029036706,0.21337103,61495.0,61494.0,0.001638]
[1728029036925,0.21237103,61495.0,61494.0,0.001638]
[1728029037168,0.22137103,61495.0,61494.0,0.001638]
[1728029037657,0.19587556,61495.0,61494.0,0.001638]
[1728029037882,0.19585586,61495.0,61494.0,0.001638]
[1728029040803,0.22136899,61495.0,61494.0,0.001638]
[1728029041990,0.19587434,61495.0,61494.0,0.001638]
[1728029043148,0.1958739,61495.0,61494.0,0.001638]
[1728029044827,0.22136898,61495.0,61494.0,0.001638]
[1728029047425,0.1958739,61495.0,61494.0,0.001638]
[1728029050726,0.05875522,61495.0,61494.0,0.001638]
[1728029050978,0.34327711,61495.0,61494.0,0.001638]
[1728029051413,0.22136922,61495.0,61494.0,0.001638]
[1728029051866,0.31889278,61495.0,61494.0,0.001638]
[1728029052312,0.31889038,61495.0,61494.0,0.001638]
[1728029052537,0.22136922,61495.0,61494.0,0.001638]
[1728029052986,0.19593509,61495.0,61494.0,0.001638]
[1728029054318,0.29345696,61495.0,61494.0,0.001638]
[1728029054536,0.19593509,61495.0,61494.0,0.001638]
[1728029054750,0.22142931,61495.0,61494.0,0.001638]
[1728029055646,0.31895407,61495.0,61494.0,0.001638]
[1728029056347,0.31895407,61495.0,61494.0,0.164255]
[1728029056348,0.04149422,61495.0,61494.0,0.164255]
[1728029056587,0.03332171,61495.0,61494.0,0.332555]
[1728029056806,0.03331996,61495.0,61494.0,0.332555]
[1728029057029,0.01731996,61495.0,61494.0,0.332555]
[1728029057251,0.02131996,61495.0,61494.0,0.332555]
[1728029058348,0.03031996,61495.0,61494.0,0.332555]
[1728029058560,0.02631996,61495.0,61494.0,0.332555]
[1728029058773,0.01731996,61495.0,61494.0,0.332555]
[1728029059286,0.01731996,61495.0,61494.0,0.333555]
[1728029059727,0.04876026,61497.0,61496.0,0.162612]
[1728029059982,0.06607498,61497.0,61496.0,0.162612]
[1728029061345,0.06607452,61497.0,61496.0,0.162612]
[1728029061837,0.06807452,61497.0,61496.0,0.162612]
[1728029063002,0.06807452,61497.0,61496.0,0.162322]
[1728029064100,0.06806479,61497.0,61496.0,0.162322]
[1728029065855,0.01930453,61497.0,61496.0,0.237422]
[1728029067209,0.01934091,61497.0,61496.0,0.237422]
[1728029071400,0.01934091,61497.0,61496.0,0.35653939]
[1728029071615,0.01934091,61497.0,61496.0,0.353622]
[1728029073437,0.01927977,61497.0,61496.0,0.353622]
[1728029074959,0.01927977,61497.0,61496.0,0.54239695]
[1728029075604,0.01927977,61497.0,61496.0,0.353622]
[1728029076785,0.002,61497.0,61496.0,0.353622]
[1728029076999,0.01932377,61497.0,61496.0,0.353622]
[1728029077429,0.002,61497.0,61496.0,0.353622]
[1728029077648,0.01932549,61497.0,61496.0,0.353622]
[1728029078288,0.01732549,61497.0,61496.0,0.353622]
[1728029078713,0.01932549,61497.0,61496.0,0.353622]
[1728029079383,0.01732549,61497.0,61496.0,0.353622]
[1728029080715,0.01832549,61497.0,61496.0,0.353622]
[1728029081655,0.01932549,61497.0,61496.0,0.355622]
[1728029082298,0.01832549,61497.0,61496.0,0.353622]
[1728029083007,0.01932549,61497.0,61496.0,0.332622]
[1728029083216,0.01832549,61497.0,61496.0,0.332622]
[1728029083448,0.01932549,61497.0,61496.0,0.332622]
[1728029083682,0.01828852,61497.0,61496.0,0.332622]
[1728029083928,0.01928852,61497.0,61496.0,0.332622]
[1728029084148,0.01928852,61497.0,61496.0,0.333441]
[1728029084367,0.02092652,61497.0,61496.0,0.333441]
[1728029084812,0.01892652,61497.0,61496.0,0.331441]
[1728029085040,0.01992652,61497.0,61496.0,0.331441]
[1728029085256,0.01992652,61497.0,61496.0,0.335441]
[1728029085723,0.01992652,61497.0,61496.0,0.331441]
[1728029085954,0.01992652,61497.0,61496.0,0.332441]
[1728029086900,0.002638,61497.0,61496.0,0.332441]
[1728029087124,0.01991689,61497.0,61496.0,0.332441]
[1728029087576,0.002638,61497.0,61496.0,0.332441]
[1728029088050,0.01991721,61497.0,61496.0,0.332441]
[1728029090490,0.01991504,61497.0,61496.0,0.332441]
[1728029091390,0.01991504,61497.0,61496.0,0.355441]
[1728029095201,0.01991504,61497.0,61496.0,0.357441]
[1728029096114,0.01991504,61497.0,61496.0,0.355441]
[1728029096354,0.01991504,61497.0,61496.0,0.54421595]
[1728029096569,0.01991504,61497.0,61496.0,0.54621595]
[1728029097551,0.0199482,61497.0,61496.0,1.05460687]
[1728029097805,0.0199482,61497.0,61496.0,0.80940266]
[1728029098579,0.0199482,61497.0,61496.0,0.80840266]
[1728029099042,0.0199482,61497.0,61496.0,0.81640266]
[1728029099484,0.0199482,61497.0,61496.0,0.81440266]
[1728029099718,0.0199482,61497.0,61496.0,0.81640266]
[1728029099931,0.0209482,61497.0,61496.0,0.82240266]
[1728029100382,0.003638,61497.0,61496.0,0.82240266]
[1728029100827,0.0209542,61497.0,61496.0,0.82240266]
[1728029101069,0.003638,61497.0,61496.0,0.82240266]
[1728029101708,0.24520421,61504.0,61503.0,0.65046795]
[1728029101963,0.26250822,61504.0,61503.0,0.81365466]
[1728029102175,0.01730401,61504.0,61503.0,0.81365466]
[1728029102671,0.00164,61505.0,61504.0,0.361691]
[1728029102907,0.0189395,61505.0,61504.0,0.52487771]
[1728029104268,0.0199395,61505.0,61504.0,0.53087771]
[1728029105253,0.0209395,61505.0,61504.0,0.54187771]
[1728029106206,0.02094984,61505.0,61504.0,0.54187771]
[1728029107641,0.02094984,61505.0,61504.0,0.64187771]
[1728029109683,0.02094984,61505.0,61504.0,0.76561859]
[1728029112774,0.00364,61505.0,61504.0,0.76561859]
[1728029115428,0.00364,61505.0,61504.0,0.64187771]
[1728029115671,0.00364,61505.0,61504.0,0.76561859]
[1728029117347,0.00364,61505.0,61504.0,0.453691]
[1728029117561,0.00364,61505.0,61504.0,0.279591]
[1728029118719,0.00364,61505.0,61504.0,0.302591]
[1728029119981,0.00364,61505.0,61504.0,0.179591]
[1728029121663,0.00364,61505.0,61504.0,0.202591]
[1728029121901,0.00364,61505.0,61504.0,0.179591]
[1728029122845,0.165228,61505.0,61504.0,0.006]
[1728029123092,0.164228,61505.0,61504.0,0.003]
[1728029123338,0.246028,61505.0,61504.0,0.003]
[1728029123587,0.246028,61505.0,61504.0,0.006]
[1728029123588,0.08344,61505.0,61504.0,0.006]
[1728029124393,0.246028,61505.0,61504.0,0.006]
[1728029124971,0.246028,61505.0,61501.0,0.162598]
[1728029124972,0.246029,61505.0,61502.0,0.162593]
[1728029125419,0.246029,61505.0,61504.0,0.003]
[1728029125656,0.24575579,61505.0,61504.0,0.001]
[1728029125892,0.08289326,61505.0,61500.0,0.325199]
[1728029126155,0.15907515,61505.0,61497.0,0.000819]
[1728029126399,0.04869151,61504.0,61500.0,0.1626]
[1728029126630,0.162594,61503.0,61500.0,0.1626]
[1728029127101,0.162594,61503.0,61500.0,0.162601]
[1728029127102,0.21128551,61503.0,61500.0,0.162601]
[1728029127552,0.04869151,61503.0,61498.0,0.325211]
[1728029127789,0.162596,61502.0,61499.0,0.162603]
[1728029128770,0.001,61503.0,61499.0,0.162603]
[1728029128993,0.001,61503.0,61497.0,0.000819]
[1728029129214,0.1626,61501.0,61497.0,0.163426]
[1728029129666,0.1626,61501.0,61498.0,0.162606]
[1728029129887,0.325194,61502.0,61497.0,0.000819]
[1728029129888,0.162601,61500.0,61497.0,0.000819]
[1728029130109,0.162605,61499.0,61497.0,0.000819]
[1728029130821,0.162603,61500.0,61497.0,0.163428]
[1728029131048,0.162603,61500.0,61497.0,0.000819]
[1728029131289,0.162603,61500.0,61497.0,0.163427]
[1728029131981,0.162603,61500.0,61497.0,0.000819]
[1728029131982,0.162606,61498.0,61497.0,0.000819]
[1728029132206,0.255606,61498.0,61497.0,0.000819]
[1728029132961,0.72544526,61500.0,61497.0,0.000819]
[1728029132962,0.162603,61500.0,61497.0,0.000819]
[1728029133190,0.0486792,61501.0,61497.0,0.000819]
[1728029133457,0.167606,61498.0,61497.0,0.000819]
[1728029134636,0.162606,61498.0,61497.0,0.000819]
[1728029135097,0.165606,61498.0,61497.0,0.000819]
[1728029135792,0.170606,61498.0,61497.0,0.000819]
[1728029139601,0.29448093,61498.0,61497.0,0.000819]
[1728029140518,0.37038093,61498.0,61497.0,0.000819]
[1728029140781,0.44336322,61498.0,61497.0,0.000819]
[1728029141027,0.37038093,61498.0,61497.0,0.000819]
[1728029142228,0.44331815,61498.0,61497.0,0.000819]
[1728029144170,0.53451815,61498.0,61497.0,0.000819]
[1728029144430,0.46158093,61498.0,61497.0,0.000819]
[1728029145603,0.51018001,61498.0,61497.0,0.000819]
[1728029145859,0.170606,61498.0,61497.0,0.000819]
[1728029147022,0.008,61498.0,61497.0,0.00946271]
[1728029147258,0.170606,61498.0,61497.0,0.00946271]
[1728029148010,0.008,61498.0,61497.0,0.00946271]
[1728029148249,0.170606,61498.0,61497.0,0.00946271]
[1728029148698,0.008,61498.0,61497.0,0.00946271]
[1728029148942,0.170606,61498.0,61497.0,0.00946271]
[1728029153597,0.170606,61498.0,61497.0,0.000819]
[1728029154050,0.170606,61498.0,61497.0,0.01090724]
[1728029154518,0.35931695,61498.0,61497.0,0.01090724]
[1728029154964,0.43341091,61498.0,61497.0,0.000819]
[1728029156627,0.43343627,61498.0,61497.0,0.000819]
[1728029157101,0.43343627,61498.0,61497.0,0.01937258]
[1728029157337,0.43343627,61498.0,61497.0,0.000819]
[1728029157338,0.38481095,61498.0,61497.0,0.000819]
[1728029157571,0.35931695,61498.0,61497.0,0.01937258]
[1728029157812,0.35931695,61498.0,61497.0,0.000819]
[1728029158272,0.35931695,61498.0,61497.0,0.01937258]
[1728029158494,0.43225493,61498.0,61497.0,0.000819]
[1728029158718,0.43225493,61498.0,61497.0,0.01937258]
[1728029158934,0.35931695,61498.0,61497.0,0.000819]
[1728029159418,0.43225493,61498.0,61497.0,0.000819]
[1728029160351,0.26785664,61498.0,61497.0,0.000819]
[1728029160859,0.29335064,61498.0,61497.0,0.01937258]
[1728029161118,0.1961,61498.0,61497.0,0.01937258]
[1728029162071,0.170606,61498.0,61497.0,0.01937258]
[1728029162291,0.26785664,61498.0,61497.0,0.01937258]
[1728029164377,0.2921693,61498.0,61497.0,0.01937258]
[1728029164829,0.170606,61498.0,61497.0,0.01937258]
[1728029165056,0.29245632,61498.0,61497.0,0.01937258]
[1728029165289,0.170606,61498.0,61497.0,0.01937258]
[1728029166422,0.170606,61498.0,61497.0,0.000819]
[1728029166656,0.18789269,61498.0,61497.0,0.000819]
[1728029166918,0.18789269,61498.0,61497.0,0.01937826]
[1728029167150,0.1878927,61498.0,61497.0,0.000819]
[1728029167396,0.1878927,61498.0,61497.0,0.01937826]
[1728029167695,0.170606,61498.0,61497.0,0.000819]
[1728029168092,0.18788276,61498.0,61497.0,0.000819]
[1728029169012,0.18788276,61498.0,61497.0,0.01937826]
[1728029169238,0.18788276,61498.0,61497.0,0.000819]
[1728029169508,0.18788276,61498.0,61497.0,0.01937826]
[1728029169731,0.18788276,61498.0,61497.0,0.000819]
[1728029169956,0.18788276,61498.0,61497.0,0.01937826]
[1728029170175,0.18788276,61498.0,61497.0,0.000819]
[1728029170407,0.18788276,61498.0,61497.0,0.01937826]
[1728029170637,0.33427072,61498.0,61497.0,0.000819]
[1728029170871,0.2133762,61498.0,61497.0,0.01937826]
[1728029171121,0.35976416,61498.0,61497.0,0.000819]
[1728029171357,0.35976416,61498.0,61497.0,0.01937826]
[1728029171586,0.2133762,61498.0,61497.0,0.000819]
[1728029171829,0.2133762,61498.0,61497.0,0.01937826]
[1728029172055,0.2133762,61498.0,61497.0,0.000819]
[1728029172283,0.2133762,61498.0,61497.0,0.01937826]
[1728029172515,0.2133762,61498.0,61497.0,0.000819]
[1728029172753,0.2133762,61498.0,61497.0,0.01937826]
[1728029172997,0.2133762,61498.0,61497.0,0.000819]
[1728029173237,0.3598294,61498.0,61497.0,0.01937826]
[1728029173467,0.3598294,61498.0,61497.0,0.000819]
[1728029173929,0.000192,61497.0,61496.0,0.000819]
[1728029174156,0.162801,61497.0,61496.0,0.000819]
[1728029174376,0.162801,61497.0,61496.0,0.0193833]
[1728029174666,0.32649713,61497.0,61496.0,0.000819]
[1728029174899,0.32649713,61497.0,61496.0,0.0193833]
[1728029175140,0.18001731,61497.0,61496.0,0.000819]
[1728029175375,0.32649713,61497.0,61496.0,0.0193833]
[1728029175613,0.33030513,61497.0,61496.0,0.000627]
[1728029176135,0.33230513,61497.0,61496.0,0.01919456]
[1728029177301,0.18585242,61497.0,61496.0,0.01919456]
[1728029178909,0.18585242,61497.0,61496.0,0.11409456]
[1728029179840,0.33239411,61497.0,61496.0,0.11409456]
[1728029183309,0.18585242,61497.0,61496.0,0.11409456]
[1728029184296,0.18585242,61497.0,61496.0,0.01919456]
[1728029188082,0.168609,61497.0,61496.0,0.01919456]
[1728029188316,0.18583235,61497.0,61496.0,0.01919456]
[1728029188836,0.33519438,61497.0,61496.0,0.01919456]
[1728029189064,0.33519438,61497.0,61496.0,0.000627]
[1728029191409,0.33683238,61497.0,61496.0,0.000627]
[1728029192326,0.31133893,61497.0,61496.0,0.000627]
[1728029195601,0.33683286,61497.0,61496.0,0.000627]
[1728029198109,0.21296428,61497.0,61496.0,0.000627]
[1728029198386,0.21301792,61497.0,61496.0,0.000627]
[1728029198633,0.19574093,61497.0,61496.0,0.01919661]
[1728029198867,0.21301801,61497.0,61496.0,0.000627]
[1728029199114,0.21301801,61497.0,61496.0,0.01919661]
[1728029199361,0.21301801,61497.0,61496.0,0.000627]
[1728029199612,0.21301801,61497.0,61496.0,0.01919661]
[1728029199837,0.21301801,61497.0,61496.0,0.000627]
[1728029200768,0.21301801,61497.0,61496.0,0.01919661]
[1728029201007,0.21301801,61497.0,61496.0,0.000627]
[1728029201233,0.21301801,61497.0,61496.0,0.01919661]
[1728029201497,0.21301801,61497.0,61496.0,0.000627]
[1728029201687,0.21301801,61497.0,61496.0,0.01919913]
[1728029204923,0.21296808,61497.0,61496.0,0.01919913]
[1728029208344,0.19574093,61497.0,61496.0,0.01919913]
[1728029208559,0.21297573,61497.0,61496.0,0.000627]
[1728029208816,0.21297573,61497.0,61496.0,0.01919927]
[1728029209045,0.21297573,61497.0,61496.0,0.000627]
[1728029209481,0.21297573,61497.0,61496.0,0.01919927]
[1728029218372,0.05036673,61497.0,61496.0,0.19679927]
[1728029218597,0.0248728,61497.0,61496.0,0.35941127]
[1728029218830,0.14703469,61497.0,61496.0,0.35941127]
[1728029219051,0.0248728,61497.0,61496.0,0.35941127]
[1728029219272,0.0248728,61497.0,61496.0,0.19679927]
[1728029219524,0.0228728,61497.0,61496.0,0.35941127]
[1728029219753,0.0228728,61497.0,61496.0,0.36141127]
[1728029219989,0.0188728,61497.0,61496.0,0.36141127]
[1728029220208,0.0228728,61497.0,61496.0,0.36141127]
[1728029220689,0.0188728,61497.0,61496.0,0.36141127]
[1728029221366,0.01891473,61497.0,61496.0,0.36141127]
[1728029224586,0.1410159,61497.0,61496.0,0.36141127]
[1728029225729,0.1410159,61497.0,61496.0,0.19679927]
[1728029226178,0.1410159,61497.0,61496.0,0.19779927]
[1728029226401,0.1410159,61497.0,61496.0,0.36041127]
[1728029227083,0.18152373,61497.0,61496.0,0.19779927]
[1728029227349,0.18152373,61497.0,61496.0,0.02019927]
[1728029227350,0.32815845,61497.0,61496.0,0.02019927]
[1728029227597,0.32915845,61497.0,61496.0,0.02019927]
[1728029227830,0.18252373,61497.0,61496.0,0.02019927]
[1728029228077,0.18152373,61497.0,61496.0,0.001627]
[1728029228302,0.32804183,61497.0,61496.0,0.02017454]
[1728029228527,0.32804183,61497.0,61496.0,0.001627]
[1728029228765,0.33204183,61497.0,61496.0,0.001627]
[1728029229042,0.33204183,61497.0,61496.0,0.000627]
[1728029229276,0.18552373,61497.0,61496.0,0.000627]
[1728029229513,0.18652373,61497.0,61496.0,0.000627]
[1728029229750,0.18652373,61497.0,61496.0,0.01917454]
[1728029229989,0.18852373,61497.0,61496.0,0.000627]
[1728029230475,0.18852373,61497.0,61496.0,0.01917454]
[1728029230959,0.171247,61497.0,61496.0,0.01917454]
[1728029231174,0.18862651,61497.0,61496.0,0.01917454]
[1728029233244,0.18862651,61497.0,61496.0,0.000627]
[1728029233444,0.18862651,61497.0,61496.0,0.01918404]
[1728029233698,0.18862651,61497.0,61496.0,0.000627]
[1728029233924,0.18862651,61497.0,61496.0,0.01918404]
[1728029234166,0.18862651,61497.0,61496.0,0.000627]
[1728029234382,0.18865042,61497.0,61496.0,0.000627]
[1728029234638,0.18865042,61497.0,61496.0,0.01918404]
[1728029234858,0.18865042,61497.0,61496.0,0.000627]
[1728029235042,0.36066021,61497.0,61496.0,0.01918404]
[1728029235215,0.21414392,61497.0,61496.0,0.000627]
[1728029235439,0.36065769,61497.0,61496.0,0.000627]
[1728029235637,0.21414392,61497.0,61496.0,0.000627]
[1728029236359,0.3606589,61497.0,61496.0,0.000627]
[1728029237503,0.171247,61497.0,61496.0,0.000627]
[1728029237748,0.26519636,61497.0,61496.0,0.000627]
[1728029237972,0.30528783,61497.0,61496.0,0.000627]
[1728029238194,0.41813911,61497.0,61496.0,0.000627]
[1728029238428,0.41413911,61497.0,61496.0,0.000627]
[1728029238647,0.35659828,61497.0,61496.0,0.000627]
[1728029238868,0.51678499,61497.0,61496.0,0.000627]
[1728029239319,0.52678499,61497.0,61496.0,0.000627]
[1728029239785,0.53578499,61497.0,61496.0,0.000627]
[1728029240005,0.53913911,61497.0,61496.0,0.000627]
[1728029240223,0.53013911,61497.0,61496.0,0.000627]
[1728029240454,0.52813911,61497.0,61496.0,0.000627]
[1728029240672,0.55838258,61495.0,61494.0,0.000265]
[1728029241156,0.57579897,61495.0,61494.0,0.000265]
[1728029241823,0.57580747,61495.0,61494.0,0.000265]
[1728029242964,0.58980747,61495.0,61494.0,0.000265]
[1728029243394,0.57580747,61495.0,61494.0,0.000265]
[1728029243612,0.58980747,61495.0,61494.0,0.000265]
[1728029243827,0.76699418,61495.0,61494.0,0.000265]
[1728029244290,0.76899418,61495.0,61494.0,0.000265]
[1728029244507,0.76699418,61495.0,61494.0,0.000265]
[1728029244988,0.79249354,61495.0,61494.0,0.000265]
[1728029245631,0.85003437,61495.0,61494.0,0.000265]
[1728029247243,0.85203437,61495.0,61494.0,0.000265]
[1728029247950,0.85201069,61495.0,61494.0,0.000265]
[1728029248416,0.85201468,61495.0,61494.0,0.000265]
[1728029249371,0.85001468,61495.0,61494.0,0.000265]
[1728029249598,0.162646,61483.0,61476.0,0.24684221]
[1728029249810,0.1800512,61483.0,61476.0,0.24684221]
[1728029250260,0.20555221,61483.0,61476.0,0.24684221]
[1728029250916,0.22255221,61483.0,61476.0,0.24684221]
[1728029251131,0.21455221,61483.0,61476.0,0.24684221]
[1728029251356,0.18814701,61483.0,61476.0,0.24684221]
[1728029251577,0.21950632,61483.0,61476.0,0.24684221]
[1728029252663,0.23350632,61483.0,61476.0,0.24684221]
[1728029253213,0.23350632,61483.0,61476.0,0.001638]
[1728029253214,0.6427733,61483.0,61476.0,0.001638]
[1728029253676,0.61727229,61483.0,61476.0,0.001638]
[1728029254613,0.47119202,61483.0,61476.0,0.001638]
[1728029256676,0.49669673,61483.0,61476.0,0.001638]
[1728029256898,0.58969673,61483.0,61476.0,0.001638]
[1728029257808,0.56419202,61483.0,61476.0,0.001638]
[1728029259241,0.40100531,61483.0,61476.0,0.001638]
[1728029259475,0.67075313,61483.0,61476.0,0.001638]
[1728029259708,0.30800531,61483.0,61476.0,0.169138]
[1728029259970,0.43187389,61483.0,61476.0,0.169138]
[1728029261131,0.45737606,61483.0,61476.0,0.169138]
[1728029261382,0.61528263,61483.0,61476.0,0.169138]
[1728029262120,0.45737606,61483.0,61476.0,0.169138]
[1728029262343,0.57890636,61483.0,61476.0,0.169138]
[1728029263232,0.55340419,61483.0,61476.0,0.169138]
[1728029264883,0.52540419,61483.0,61476.0,0.169138]
[1728029265127,0.53940419,61483.0,61476.0,0.169138]
[1728029265367,0.53940419,61483.0,61482.0,0.077838]
[1728029265601,0.53940419,61483.0,61482.0,0.169138]
[1728029266316,0.55340419,61483.0,61482.0,0.169138]
[1728029266807,0.43187389,61483.0,61482.0,0.169138]
[1728029267276,0.57890604,61483.0,61482.0,0.169138]
[1728029267514,0.45737574,61483.0,61482.0,0.169138]
[1728029267771,0.55340419,61483.0,61482.0,0.169138]
[1728029268241,0.53604488,61483.0,61482.0,0.169138]
[1728029268476,0.55326598,61483.0,61482.0,0.169138]
[1728029269611,0.55331573,61483.0,61482.0,0.169138]
[1728029270469,0.43173568,61483.0,61482.0,0.169138]
[1728029270689,0.45723747,61483.0,61482.0,0.169138]
[1728029270912,0.43173568,61483.0,61482.0,0.169138]
[1728029271151,0.2078671,61483.0,61482.0,0.169138]
[1728029271375,0.30515984,61483.0,61482.0,0.169138]
[1728029271623,0.30514628,61483.0,61482.0,0.169138]
[1728029271943,0.20783688,61483.0,61482.0,0.18006398]
[1728029272245,0.20783688,61483.0,61482.0,0.169138]
[1728029272460,0.28081394,61483.0,61482.0,0.169138]
[1728029272687,0.26681394,61483.0,61482.0,0.169138]
[1728029272901,0.25281394,61483.0,61482.0,0.18006398]
[1728029273133,0.27581394,61483.0,61482.0,0.18006398]
[1728029273604,0.17983688,61483.0,61482.0,0.18006398]
[1728029273843,0.2913454,61483.0,61482.0,0.169138]
[1728029274080,0.2913454,61483.0,61482.0,0.18006398]
[1728029274309,0.2843454,61483.0,61482.0,0.18006398]
[1728029274531,0.20533707,61483.0,61482.0,0.18006398]
[1728029274772,0.21433707,61483.0,61482.0,0.18006398]
[1728029275036,0.21933707,61483.0,61482.0,0.18006398]
[1728029275495,0.31664647,61483.0,61482.0,0.18006398]
[1728029276187,0.30264647,61483.0,61482.0,0.18006398]
[1728029276414,0.31164647,61483.0,61482.0,0.18006398]
[1728029276870,0.21433707,61483.0,61482.0,0.18006398]
[1728029277369,0.31164647,61483.0,61482.0,0.18006398]
[1728029277597,0.21433707,61483.0,61482.0,0.18006398]
[1728029278323,0.31175131,61483.0,61482.0,0.18006398]
[1728029278558,0.3359553,61483.0,61482.0,0.18006398]
[1728029279043,0.21433707,61483.0,61482.0,0.18006398]
[1728029279506,0.3359553,61483.0,61482.0,0.18006398]
[1728029279744,0.1733093,61483.0,61482.0,0.34271298]
[1728029279979,0.05169107,61483.0,61482.0,0.34271298]
[1728029280674,0.07491697,61483.0,61482.0,0.34271298]
[1728029281146,0.07494565,61483.0,61482.0,0.46658156]
[1728029281391,0.02621956,61483.0,61482.0,0.46658156]
[1728029282350,0.02621956,61483.0,61482.0,0.34271298]
[1728029283052,0.07494565,61483.0,61482.0,0.34271298]
[1728029283534,0.02621956,61483.0,61482.0,0.34271298]
[1728029283761,0.10048622,61483.0,61482.0,0.34271298]
[1728029284470,0.05171811,61483.0,61482.0,0.34271298]
[1728029284714,0.10048449,61483.0,61482.0,0.34271298]
[1728029285900,0.05171811,61483.0,61482.0,0.34271298]
[1728029287128,0.05163592,61483.0,61482.0,0.46658156]
[1728029287364,0.02613737,61483.0,61482.0,0.46658156]
[1728029287599,0.02613513,61483.0,61482.0,0.46658156]
[1728029288088,0.02113513,61483.0,61482.0,0.46658156]
[1728029288827,0.01713513,61483.0,61482.0,0.46658156]
[1728029289282,0.01913513,61483.0,61482.0,0.46658156]
[1728029289510,0.01813513,61483.0,61482.0,0.46658156]
[1728029289776,0.01913513,61483.0,61482.0,0.46658156]
[1728029290492,0.01908688,61483.0,61482.0,0.46658156]
[1728029292099,0.01908688,61483.0,61482.0,0.46858156]
[1728029292318,0.01908688,61483.0,61482.0,0.56858156]
[1728029292569,0.01908688,61483.0,61482.0,0.59158156]
[1728029293022,0.01908688,61483.0,61482.0,0.56658156]
[1728029293250,0.01908688,61483.0,61482.0,0.44271298]
[1728029296872,0.002,61483.0,61482.0,0.44271298]
[1728029297091,0.01911515,61483.0,61482.0,0.44271298]
[1728029297320,0.002,61483.0,61482.0,0.44271298]
[1728029297562,0.01911623,61483.0,61482.0,0.44271298]
[1728029302079,0.01911748,61483.0,61482.0,0.44271298]
[1728029303881,0.002,61483.0,61482.0,0.44271298]
[1728029304103,0.01912173,61483.0,61482.0,0.44471298]
[1728029304789,0.01912173,61483.0,61482.0,0.44271298]
[1728029307252,0.01913444,61483.0,61482.0,0.44271298]
[1728029307729,0.01913849,61483.0,61482.0,0.44271298]
[1728029309082,0.01913849,61483.0,61482.0,0.46771298]
[1728029309535,0.01813849,61483.0,61482.0,0.46771298]
[1728029309976,0.01913849,61483.0,61482.0,0.46771298]
[1728029310192,0.01813849,61483.0,61482.0,0.46771298]
[1728029310412,0.002,61483.0,61482.0,0.46771298]
[1728029310654,0.01813675,61483.0,61482.0,0.46771298]
[1728029310904,0.01913675,61483.0,61482.0,0.47071298]
[1728029311365,0.01813675,61483.0,61482.0,0.46771298]
[1728029311807,0.01913675,61483.0,61482.0,0.47071298]
[1728029312454,0.01913675,61483.0,61482.0,0.59458156]
[1728029313797,0.002,61483.0,61482.0,0.59458156]
[1728029314019,0.01907058,61483.0,61482.0,0.59458156]
[1728029317179,0.002,61483.0,61482.0,0.59458156]
[1728029317396,0.01908855,61483.0,61482.0,0.59458156]
[1728029317631,0.002,61483.0,61482.0,0.59458156]
[1728029317845,0.0190884,61483.0,61482.0,0.59458156]
[1728029319450,0.0190884,61483.0,61482.0,0.75776827]
[1728029320578,0.01904692,61483.0,61482.0,0.75776827]
[1728029323877,0.002,61483.0,61482.0,0.75776827]
[1728029324113,0.01901233,61483.0,61482.0,0.75776827]
[1728029327086,0.002,61483.0,61482.0,0.75776827]
[1728029327292,0.01900614,61483.0,61482.0,0.75776827]
[1728029327500,0.002,61483.0,61482.0,0.75776827]
[1728029329200,0.002,61483.0,61482.0,0.63389969]
[1728029329411,0.002,61483.0,61482.0,0.75776827]
[1728029333869,0.002,61483.0,61482.0,0.75576827]
[1728029334093,0.002,61483.0,61482.0,0.75776827]
[1728029335892,0.01899285,61483.0,61482.0,0.75776827]
[1728029336391,0.01899285,61483.0,61482.0,0.75576827]
[1728029336616,0.01899285,61483.0,61482.0,0.75776827]
[1728029336844,0.0189872,61483.0,61482.0,0.75776827]
[1728029337542,0.0189872,61483.0,61482.0,0.75576827]
[1728029337791,0.0189872,61483.0,61482.0,0.75776827]
[1728029340084,0.01899647,61483.0,61482.0,0.75776827]
[1728029341706,0.24520421,61496.0,61482.0,0.75776827]
[1728029341707,0.24396718,61496.0,61495.0,0.162614]
[1728029341923,0.24396718,61496.0,61495.0,0.28648258]
[1728029342153,0.001638,61497.0,61496.0,0.162612]
[1728029342631,0.001638,61497.0,61496.0,0.17391917]
[1728029344737,0.001638,61497.0,61496.0,0.17491917]
[1728029344955,0.001638,61497.0,61496.0,0.17691917]
[1728029345441,0.001638,61497.0,61496.0,0.17491917]
[1728029349799,0.001638,61497.0,61496.0,0.45802616]
[1728029350038,0.001638,61497.0,61496.0,0.45631917]
[1728029350267,0.001638,61497.0,61496.0,0.88971009]
[1728029350496,0.001638,61497.0,61496.0,0.64450588]
[1728029351383,0.001638,61497.0,61496.0,0.64350588]
[1728029351823,0.001638,61497.0,61496.0,0.64450588]
[1728029352048,0.001638,61497.0,61496.0,0.64350588]
[1728029352275,0.002638,61497.0,61496.0,0.65050588]
[1728029352730,0.002638,61497.0,61496.0,0.64750588]
[1728029352952,0.003638,61497.0,61496.0,0.65450588]
[1728029354010,0.002638,61497.0,61496.0,0.65050588]
[1728029354449,0.003638,61497.0,61496.0,0.65450588]
[1728029365784,0.003638,61497.0,61496.0,0.61318775]
[1728029366036,0.00336479,61497.0,61496.0,0.61318775]
[1728029366270,0.00336479,61497.0,61496.0,0.43178775]
[1728029366515,0.02016041,61497.0,61496.0,0.42778775]
[1728029366753,0.01916041,61497.0,61496.0,0.42778775]
[1728029366998,0.02016041,61497.0,61496.0,0.28491917]
[1728029367249,0.02016041,61497.0,61496.0,0.18491917]
[1728029367528,0.02016041,61497.0,61496.0,0.18091917]
[1728029367529,0.01916041,61497.0,61496.0,0.18091917]
[1728029367771,0.01916041,61497.0,61496.0,0.17791917]
[1728029368002,0.02016041,61497.0,61496.0,0.18391917]
[1728029368244,0.01916041,61497.0,61496.0,0.17391917]
[1728029368475,0.00336479,61497.0,61496.0,0.17791917]